Cogmind - Beta 12 @@@ ROGUE MODE // 2023.03.12 @ 14:46:12 Player: ArabianSandBoa Result: Destroyed by Y-45 Defender with Beam Rifle Performance ------------- Evolutions (0) 0 Regions Visited (2) 400 Robots Destroyed (32) 160 Value Destroyed (546) 546 Prototype IDs (4) 80 Alien Tech Used (0) 0 Bonus (0) 0 TOTAL SCORE: 1186 Bonus ------- None Cogmind --------- Core Integrity 0/250 Matter 230/300 Energy 125/125 System Corruption 1% Temperature Cool (30) Movement Rolling (130) Ox2 Location -10/Mines Parts ------- > --- POWER (1) -------- Light Ion Engine > --- PROPULSION (2) --- Compact Wheel Compact Wheel > --- UTILITY (2) ------ Improved Heat Sink Huge Storage Unit > --- WEAPON (2) ------- Particle Gun Beam Cannon > --- INVENTORY (25) --- Light Treads Light Treads Compact Wheel Flight Unit Flight Unit Flight Unit Flight Unit Flight Unit Improved Heat Sink Large Storage Unit High-capacity Battery (250) Medium Matter Pod (100) Medium Matter Pod (55) Structural Scanner Sensor Array Terrain Scanner Hacking Suite Particle Gun Grenade Launcher Peak State ------------ > --- POWER ------------ Light Ion Engine > --- PROPULSION ------- Compact Wheel Compact Wheel > --- UTILITY ---------- Improved Heat Sink Huge Storage Unit > --- WEAPON ----------- Particle Gun Grenade Launcher > --- INVENTORY -------- Light Treads Light Treads Compact Wheel Flight Unit Flight Unit Flight Unit Flight Unit Flight Unit Improved Heat Sink Large Storage Unit High-capacity Battery Medium Matter Pod Medium Matter Pod Structural Scanner Sensor Array Terrain Scanner Hacking Suite Particle Gun Beam Cannon [Rating: 12] Favorites ----------- Power Ion Engine Engine Ion Engine Propulsion Wheel Treads Light Treads Leg Aluminum Leg Wheel Wheel Utility Structural Scanner Device Structural Scanner Storage Huge Storage Unit Weapon Small Laser Energy Gun Small Laser Energy Cannon Beam Cannon Ballistic Gun Assault Rifle Launcher Grenade Launcher Build | -11 -10 -10 ------- Run | Jun Mat Min Slots Evolved . | . . . Power . | . . . Propulsion . | . . . Utility . | . . . Weapon . | . . . Parts Attached 29 | . 23 6 Power 4 | . 3 1 Engine 4 | . 3 1 Core . | . . . Reactor . | . . . Propulsion 10 | . 9 1 Treads 2 | . 2 . Leg . | . . . Wheel 8 | . 7 1 Hover . | . . . Flight . | . . . Utility 6 | . 5 1 Device 4 | . 3 1 Storage 2 | . 2 . Processor . | . . . Hackware . | . . . Protection . | . . . Artifact . | . . . Weapon 9 | . 6 3 Energy Gun 6 | . 5 1 Energy Cannon 2 | . 1 1 Ballistic Gun . | . . . Ballistic Cannon . | . . . Launcher 1 | . . 1 Special Weapon . | . . . Impact Weapon . | . . . Slashing Weapon . | . . . Piercing Weapon . | . . . Special Melee Weapon . | . . . Unidentified Prototypes . | . . . Corrupted Parts 1 | . 1 . System Corruption 1 | . 1 . Parts Lost 6 | . 2 4 Power 1 | . . 1 Propulsion 1 | . . 1 Utility 1 | . 1 . Weapon 3 | . 1 2 Highest Loss Streak 3 | . 2 3 To Critical Strikes . | . . . Average Slot Usage (%) 93 | . 94 91 Engine 11 | . 12 8 Treads 5 | . 6 . Leg 4 | . 4 . Wheel 17 | . 16 27 Device 13 | . 12 14 Storage 14 | . 14 14 Energy Gun 18 | . 18 20 Ballistic Gun 6 | . 7 . Naked Turns . | . . . Heaviest Build 90 | 12 90 90 Greatest Support 40 | 20 40 32 Greatest Overweight (x) 27 | . 27 5 Average Overweight (x) 2 | . 2 2 Largest Inventory Capacity 25 | . 25 25 Average Capacity 20 | . 19 25 Most Carried 19 | . 19 19 Average Carried 12 | . 11 18 Final Capacity 25 | 8 25 25 Final Carried 19 | 6 18 19 Class Distribution -------------------- 95% | Mutant 4% | Scavenger-Mutant Dominant Class ---------------- Mutant | -10/Materials Mutant | -10/Mines Resources | -11 -10 -10 ----------- Run | Jun Mat Min Matter Collected 701 | 163 393 145 Remotely . | . . . Salvage Created 1152 | . 812 340 Parts 66 | . 55 11 Haulers Intercepted 2 | . 2 . Recyclers Shooed 9 | . 6 3 Parts Field Recycled . | . . . Retrieved Matter . | . . . Parts Self-Destructed . | . . . Prevented . | . . . Kills | -11 -10 -10 ------- Run | Jun Mat Min Combat Hostiles Destroyed 16 | . 12 4 Guns 14 | . 12 2 AOE 2 | . . 2 Classes Destroyed 8 | . 8 . Worker 4 | . 3 1 Builder 1 | . 1 . Hauler 2 | . 2 . Recycler 5 | . 3 2 Operator 1 | . 1 . Watcher 3 | . 3 . Swarmer 6 | . 6 . Grunt 10 | . 6 4 Best Kill Streak 6 | . 6 5 Combat Bots Only 5 | . 5 2 Max Kills in Single Turn 2 | . 1 2 Gunslinging . | . . . Exploded 2 | . . 2 Melee . | . . . Uniques/NPCs Destroyed . | . . . Combat | -11 -10 -10 -------- Run | Jun Mat Min Damage Taken 875 | . 609 266 Core 256 | . 179 77 Absorbed by Shields . | . . . Core Remaining (%) 100 | 100 . . Volleys Fired 94 | . 74 20 Largest 2 | . 2 2 Hottest 125 | . 90 125 Shots Fired 182 | . 144 38 Gun 179 | . 144 35 Cannon 1 | . . 1 Launcher 2 | . . 2 Special . | . . . Kinetic 42 | . 42 . Thermal 119 | . 83 36 Explosive 2 | . . 2 Electromagnetic 19 | . 19 . Robot Hit Streak 16 | . 16 10 Robot Miss Streak 8 | . 8 3 Penetration Max . | . . . Secondary Targets 1 | . 1 . Max Gunslinging Chain 1 | . 1 . Shots Hit Robots 112 | . 83 29 Core Hits 53 | . 38 15 Critical Kills . | . . . Critical Parts Destroyed . | . . . Critical Strikes 3 | . 2 1 Burn 3 | . 2 1 Melee Attacks . | . . . Impact . | . . . Slashing . | . . . Piercing . | . . . Sneak Attacks . | . . . Combat Hostiles . | . . . Follow-up Attacks . | . . . Damage Inflicted 1636 | . 1164 472 Guns 1390 | . 1050 340 Cannons 17 | . . 17 Explosions 229 | . 114 115 Melee . | . . . Ramming . | . . . Kinetic 295 | . 295 . Thermal 1098 | . 741 357 Explosive 115 | . . 115 Electromagnetic 128 | . 128 . Impact . | . . . Slashing . | . . . Piercing . | . . . Highest Corruption 1 | . 1 1 Average Corruption 1 | . 1 1 Corruption Purged . | . . . Corruption Blocked . | . . . Effects 10 | . 9 1 Message Errors 1 | . 1 . Matter Fused 1 | . 1 . Energy Discharges 2 | . 2 . Data Loss (minor) 2 | . 2 . Data Loss (major) 1 | . 1 . Misfires 2 | . 1 1 Alerts 1 | . 1 . Overload Shots . | . . . Overflow Damage . | . . . Projectiles . | . . . Explosions . | . . . Melee . | . . . Knockbacks . | . . . Impact . | . . . Kinetic . | . . . Secondary . | . . . Self-Inflicted Damage 70 | . 53 17 Shots 2 | . 1 1 Rammed . | . . . Targets Rammed . | . . . Kicked . | . . . Crushed . | . . . Highest Temperature 150 | . 150 30 Average Temperature 38 | . 40 10 Received Heat Transfer 294 | . 162 132 Siege Activations . | . . . Robots Corrupted . | . . . Combat Hostiles . | . . . Parts Fried 1 | . 1 . Impact Corruptions . | . . . Robots Melted . | . . . Combat Hostiles . | . . . Parts Melted 4 | . 3 1 Heat Transferred 2904 | . 1925 979 Parts Sabotaged . | . . . Parts Stolen . | . . . Parts Stripped . | . . . Power Chain Reactions 1 | . 1 . Missiles Intercepted . | . . . Alert | -11 -10 -10 ------- Run | Jun Mat Min Peak Influence 330 | . 330 118 Initial 15 | . . 15 Average 109 | . 116 64 Maximum Alert Level 1 | . 1 . Low Security (%) 91 | . 90 100 Level 1 8 | . 9 . Level 2 . | . . . Level 3 . | . . . Level 4 . | . . . Level 5 . | . . . High Security . | . . . Max Security . | . . . Squads Dispatched 3 | . 3 . Investigation . | . . . Extermination . | . . . Reinforcement 3 | . 3 . Assault . | . . . Garrison . | . . . Intercept . | . . . Searches Triggered . | . . . Construction Impeded . | . . . Haulers Reinforced . | . . . Active Scanning Responses . | . . . Cargo Convoy Interrupts . | . . . Stealth | -11 -10 -10 --------- Run | Jun Mat Min Distress Signals 2 | . 2 . Communications Jammed . | . . . Distress Signals . | . . . Times Spotted 32 | . 26 6 Peak Tracking Total 5 | . 5 2 Tactical Retreats 1 | . 1 . Traps | -11 -10 -10 ------- Run | Jun Mat Min Traps Triggered 6 | . 6 . Indirectly . | . . . Trap Hack Attempts . | . . . Triggered . | . . . Disarmed . | . . . Reprogrammed . | . . . Reused . | . . . Traps Extracted . | . . . Installed . | . . . Triggered . | . . . Machines | -11 -10 -10 ---------- Run | Jun Mat Min Machines Disabled . | . . . Max in Single Turn . | . . . Machines Repaired . | . . . Machines Sabotaged . | . . . Overloaded Fab Kills . | . . . Hacking | -11 -10 -10 --------- Run | Jun Mat Min Machines Accessed 8 | . 8 . Terminals 6 | . 6 . Fabricators . | . . . Repair Stations . | . . . Recycling Units 2 | . 2 . Scanalyzers . | . . . Garrison Access . | . . . Total Hacks 23 | . 23 . Successful 11 | . 11 . Failed 11 | . 11 . Catastrophic . | . . . Database Lockouts 1 | . 1 . Manual 14 | . 14 . Terminals 19 | . 19 . Fabricators . | . . . Repair Stations . | . . . Recycling Units 4 | . 4 . Scanalyzers . | . . . Garrison Access . | . . . Terminal Hacks 7 | . 7 . Robot Analysis 3 | . 3 . Prototype ID Bank 2 | . 2 . Level Access Points 1 | . 1 . Zone Layout 1 | . 1 . Fabricator Hacks . | . . . Repair Station Hacks . | . . . Recycling Unit Hacks 1 | . 1 . Report Inventory 1 | . 1 . Scanalyzer . | . . . Garrison Access Hacks . | . . . Unauthorized Hacks 3 | . 3 . Terminals 2 | . 2 . Botnet 2 | . 2 . Fabricators . | . . . Repair Stations . | . . . Recycling Units 1 | . 1 . Monitor 1 | . 1 . Scanalyzers . | . . . Garrison Access . | . . . Data Cores Recovered . | . . . Used . | . . . Hacking Detections 8 | . 8 . Full Trace Events 1 | . 1 . Feedback Events . | . . . Feedback Blocked . | . . . Robot Schematics Acquired . | . . . Robots Built . | . . . Authchips . | . . . Time . | . . . Total Robot Build Rating . | . . . Part Schematics Acquired . | . . . Parts Built . | . . . Authchips . | . . . Time . | . . . Total Part Build Rating . | . . . Parts Repaired . | . . . Time . | . . . Parts Recycled . | . . . Recycled Matter . | . . . Retrieved Matter . | . . . Retrieved Components . | . . . Parts Scanalyzed . | . . . Part Schematics Acquired . | . . . Parts Damaged . | . . . Bothacking | -11 -10 -10 ------------ Run | Jun Mat Min Used RIF Installer . | . . . Robots Hacked . | . . . Non-combat . | . . . Combat . | . . . Robot Hacks Applied . | . . . Relay Couplers Released . | . . . Fabnet Peak Effective % . | . . . Robots Rewired . | . . . Allies Hacked . | . . . Hacks Repelled . | . . . Allies | -11 -10 -10 -------- Run | Jun Mat Min Total Allies . | . . . Largest Group . | . . . Highest-Rated Group . | . . . Highest-Rated Ally . | . . . Total Orders . | . . . Ally Attacks . | . . . Total Damage . | . . . Kills . | . . . Allies Corrupted . | . . . Allies Melted . | . . . Intel | -11 -10 -10 ------- Run | Jun Mat Min Robot Analysis Total 3 | . 3 . Derelict Logs Recovered 1 | . . 1 Drone Launches . | . . . Drone Recoveries . | . . . Exploration | -11 -10 -10 ------------- Run | Jun Mat Min Turns Passed 1627 | . 1422 205 Spaces Moved 789 | 1 697 91 Core 1 | . 1 . Treads 82 | . 82 . Legs 112 | 1 111 . Wheels 594 | . 503 91 Hover . | . . . Flight . | . . . Fastest Speed 80 | 120 80 130 Average Speed 146 | 120 148 134 Slowest Speed 1400 | 120 1400 175 Overloaded Moves . | . . . Propulsion Burnouts . | . . . Robots Hopped . | . . . Cave-ins Triggered . | . . . Exploration Rate (%) 37 | 2 81 28 Regions Visited 2 Branch Regions 1 Pre-discovered Areas 1 | . . 1 Known Exits Taken . | . . . Unknown Exits Taken 2 | 1 1 . Scrap Searched . | . . . Spaces Dug . | . . . Terrain Destroyed 19 | . 6 13 Melee . | . . . Projectile . | . . . AOE 19 | . 6 13 Terrain Rammed . | . . . Walls Destroyed . | . . . Machines Disabled . | . . . Actions | -11 -10 -10 --------- Run | Jun Mat Min Total 1075 | . 941 134 Wait 133 | . 118 15 Move 787 | . 696 91 Hop . | . . . Pick Up 26 | . 24 2 Fast Attach 7 | . 4 3 Attach 10 | . 9 1 Detach . | . . . Swap 12 | . 10 2 Drop 6 | . 6 . Fire 94 | . 74 20 Melee . | . . . Ram . | . . . Kick . | . . . Crush . | . . . Escape Stasis . | . . . Rewire . | . . . Trap . | . . . Miscellaneous . | . . . Route ------- -11/Junkyard -10/Materials (discovered 4 exits: *Mat x3 / [*Min]) -10/Mines (discovered 1 exit: *Mat) History --------- Turn | Location | Event 1 | -11/Junkyard | Discovered new exit (range 0) 1 | -11/Junkyard | Entered Materials 244 | -10/Materials | Core integrity fell below 50% 314 | -10/Materials | Build established: Mutant 671 | -10/Materials | Discovered new exit (range 7) 890 | -10/Materials | Identified exit to Materials 1276 | -10/Materials | Central database locked down 1396 | -10/Materials | Discovered new exit (range 12) 1423 | -10/Materials | Entered Mines 1433 | -10/Mines | Learned location of Storage (-8) 1476 | -10/Mines | Core integrity fell below 20% 1496 | -10/Mines | Discovered exit to Materials (range 5) 1575 | -10/Mines | Lost 3 parts (1n2w) 1628 | -10/Mines | Destroyed by Y-45 Defender with Beam Rifle Last Messages --------------- 01545_ G-34 Mercenary destroyed. 01545_ G-47 Trooper destroyed. 01547_ R-06 Scavenger destroyed. 01554_ Acquired Lgt. Ion Engine. 01557_ Acquired Com. Wheel. 01561_ U-05 Engineer builds a Wall. 01566_ R-06 Scavenger collects Wheel. 01567_ U-05 Engineer builds a Wall. 01569_ R-06 Scavenger collects Sml. Matter Pod. 01570_ Acquired Imp. Heat Sink. 01571_ U-05 Engineer lays Concrete. 01572_ U-05 Engineer builds a Wall. 01574_ Acquired Particle Gun. 01577_ U-05 Engineer lays Concrete. 01579_ R-06 Scavenger collects Aluminum Leg. 01580_ U-05 Engineer builds a Wall. 01582_ U-05 Engineer lays Concrete. 01583_ R-06 Scavenger collects Heat Sink. 01584_ U-05 Engineer lays Concrete. 01608_ K-01 Serf collects debris. Map ----- +----------------------------------------------------+ | | | | | | | | | | | | | | | | | | | | | | | | | | | | | | | | | | | ?????????????????????????????????????????????????? | | ?????????????????????##??#####???????????????????? | | ????????????????????##!!## ###?????????????????? | | ????????????????????#"!! # ##?????????????#### | | ????????????????????# + ##????????######## | | ????????????????????# + ##??????####### | | ????????????????????#"!! # #??????### | | ????????????????????##!?##YY #??????## | | ????????????????????#####@ #??????## | | ???????????????????## ##?????### | | ???????????????????# k #?????#### ## | | ??????????????????# ##?????### ### | | ?????????????????# ## ##????? ### | | ????????????????# ### ### ##????###### | | ???????????????# ???# #?# # #### ### | | ?????????????? ????# #?# ## ## | | ????????????? ?????## ##?# ### ##### ## ## | | ????????????? ???????###???# #?# ##?## ## ## | | ?????????????? ??????????????# #?# #### # ## | | ?????????????????????????????# #?# ### ## # | | ????????????????????????????? ?## ## % | | ????????????????????????????? ??## ########=%! | | ????????????????????????????# ### ######## | | ????????????????????????????## | | ?????????????????????????????## | | ??????????????????????????????## ############# | | ???????????????????????????????#???########### | | ????????????????????????????????????????????## | | ?????????????????????????????????????????????## % | | ?????????????????????????????????????????????## | | ??????????????????????????????????????????????#### | | ????????????????????????????????????????????????## | | ?????????????????????????????????????????????????# | +----------------------------------------------------+ Best States ------------- Heat Dissipation 39 Energy Generation 10 Energy Capacity 250 Matter Stores 300 Matter Capacity 300 Sight Range 16 Terrain Scan Density 10 Evasion (%) 55 Recoil Reduction 2 Item Schematics ----------------- None Robot Schematics ------------------ None Fabricated ------------ Nothing Alien Tech Used ----------------- None Achievements -------------- None Challenges ------------ None Game ------ Seed RefineryCryofiberFlakker Manual? 0 Play Time 00:13:28 Cumulative 450.1 hours Start 2023.03.12 @ 00:40:33 End 2023.03.12 @ 14:46:12 Sessions 1 Manual Loads 0 Difficulty Rogue Special Mode None Game No. 502 Rogue 502 Adventurer 0 Explorer 0 Win Type - Total 1 Types 1/0/0/0/0/0/0/0/0 Lore% 60 Gallery% 79 Achievement% 65 Wizard Run 0 Options --------- ASCII 0 Keyboard 0 Movement Mouse Keybinds 0 Fullscreen 2 Font 24/Smallcaps Map View 76x50 Tactical HUD 1 Map Filters NONE Filters NONE Steam 1 RUN: 55aac6bf-1ebb-4ebf-8605-cd59ba661b02